bitfinex-derivatives/quotes_SOLF0:USTF0_20241024
["timestamp","ask_amount","ask_price","bid_price","bid_amount"]
[1729795802941,2.8411,176.11,176.08,2.8413]
[1729795803442,2.8411,176.1,176.08,2.8413]
[1729795804644,245.1,176.28,176.08,2.8413]
[1729795804842,2.841,176.11,176.08,10.72417143]
[1729795806347,1.2452,176.14,176.1,7.88287143]
[1729795807354,1.2452,176.14,176.13,7.88287143]
[1729795807649,1.2371,176.18,176.13,7.88287143]
[1729795807838,1.2371,176.18,176.15,7.88287143]
[1729795808038,1.2371,176.18,176.16,2.84]
[1729795808240,1.2371,176.18,176.15,7.88287143]
[1729795808641,7.88287143,176.21,176.15,11.96287143]
[1729795808845,2.3469,176.24,176.17,7.88287143]
[1729795808846,1.2697,176.22,176.17,7.88287143]
[1729795809141,1.2697,176.22,176.19,7.88287143]
[1729795809448,4.08,176.35,176.21,7.88287143]
[1729795809649,7.88287143,176.3,176.25,7.88287143]
[1729795809841,3.6829,176.33,176.25,10.72157143]
[1729795810048,7.88287143,176.31,176.25,10.72157143]
[1729795810447,2.8382,176.29,176.25,7.88287143]
[1729795810645,2.8382,176.29,176.25,10.72147143]
[1729795811345,7.88287143,176.31,176.12,0.9138]
[1729795811544,2.8388,176.25,176.2,2.8394]
[1729795811743,7.88287143,176.26,176.12,0.9138]
[1729795811949,2.8387,176.25,176.2,10.72217143]
[1729795812151,7.88287143,176.26,176.2,10.72217143]
[1729795812152,4.08,176.31,176.21,7.88287143]
[1729795812345,7.88287143,176.27,176.21,7.88287143]
[1729795812856,3.6829,176.33,176.26,7.88287143]
[1729795813055,4.08,176.32,176.26,7.88287143]
[1729795813253,7.88287143,176.31,176.26,7.88287143]
[1729795813554,2.8381,176.29,176.26,7.88287143]
[1729795813749,7.88287143,176.31,176.26,7.88287143]
[1729795814652,3.6829,176.33,176.29,7.88287143]
[1729795815258,2.8377,176.31,176.29,7.88287143]
[1729795816246,2.8377,176.31,176.27,2.8382]
[1729795816659,3.6829,176.33,176.25,12.27087149]
[1729795817557,2.8378,176.31,176.27,2.8382]
[1729795819055,2.8378,176.31,176.28,2.8382]
[1729795819651,3.6829,176.33,176.28,2.8382]
[1729795821266,2.8377,176.31,176.28,2.8382]
[1729795825859,2.8377,176.31,176.27,2.8382]
[1729795826755,3.6829,176.33,176.27,2.8382]
[1729795826958,3.6829,176.33,176.28,2.8382]
[1729795828262,2.8378,176.31,176.28,2.8382]
[1729795829859,2.8378,176.31,176.2,285.80207]
[1729795829860,2.8384,176.27,176.24,2.8387]
[1729795830070,12.27087149,176.32,176.22,4.08]
[1729795830471,2.8383,176.28,176.24,2.8387]
[1729795830670,3.6829,176.33,176.23,12.27087149]
[1729795830860,3.6829,176.33,176.26,12.27087149]
[1729795832371,2.8378,176.31,176.28,2.8381]
[1729795836475,2.8383,176.28,176.26,4.08]
[1729795837579,2.8381,176.29,176.26,4.08]
[1729795839277,2.8381,176.29,176.26,6.9185]
[1729795840185,2.8384,176.27,176.26,4.08]
[1729795840381,7.84690562,176.31,176.26,4.08]
[1729795840781,2.8383,176.28,176.25,2.8386]
[1729795840974,2.8383,176.28,176.24,14.76570562]
[1729795843078,2.8384,176.27,176.24,11.92690562]
[1729795844686,2.8384,176.27,176.24,14.76570562]
[1729795849592,2.839,176.23,176.2,288.64147]
[1729795849779,2.839,176.23,176.2,285.80207]
[1729795849780,7.84690562,176.23,176.2,285.80207]
[1729795850285,2.8393,176.22,176.2,285.80207]
[1729795852691,10.68620562,176.21,176.2,285.80207]
[1729795861387,2.8393,176.21,176.2,285.80207]
[1729795861583,1.1684,176.26,176.2,293.64897562]
[1729795861789,7.84690562,176.28,176.22,7.84690562]
[1729795861990,2.8386,176.26,176.23,7.84690562]
[1729795862501,7.84690562,176.28,176.23,7.84690562]
[1729795862502,7.84690562,176.29,176.23,7.84690562]
[1729795862799,2.8386,176.26,176.23,14.76590562]
[1729795864990,2.8386,176.26,176.23,11.92690562]
[1729795865992,4.08,176.31,176.25,10.68550562]
[1729795866187,10.34040562,176.32,176.26,7.84690562]
[1729795867387,2.8381,176.29,176.26,10.68530562]
[1729795868599,2.8381,176.29,176.26,7.84690562]
[1729795875611,10.34040562,176.32,176.26,7.84690562]
[1729795876512,2.8381,176.29,176.26,10.68540562]
[1729795878114,7.84690562,176.3,176.22,1.2027]
[1729795878305,2.8385,176.27,176.24,7.84690562]
[1729795878505,2.8385,176.27,176.25,5.08203729]
[1729795878711,7.84690562,176.3,176.24,7.84690562]
[1729795879021,2.8386,176.26,176.24,7.84690562]
[1729795883415,2.8392,176.22,176.2,288.64157]
[1729795883612,2.8392,176.22,176.21,9.16582842]
[1729795884218,2.8392,176.22,176.21,9.16595752]
[1729795884409,2.8388,176.25,176.22,2.8391]
[1729795884605,2.8388,176.25,176.22,10.68600562]
[1729795885111,2.8385,176.26,176.23,5.08567319]
[1729795885319,4.08,176.29,176.23,7.84690562]
[1729795885514,2.86332217,176.53,176.26,7.84690562]
[1729795885515,5.6739,176.36,176.26,7.84690562]
[1729795885731,2.8382,176.29,176.26,7.84690562]
[1729795886212,2.8382,176.29,176.26,10.68540562]
[1729795886620,2.8381,176.29,176.26,7.84690562]
[1729795886819,2.8381,176.29,176.28,7.84690562]
[1729795887415,2.8381,176.29,176.26,10.68530562]
[1729795890423,10.34040562,176.32,176.26,10.68530562]
[1729795890625,2.8382,176.28,176.26,10.68530562]
[1729795891622,7.84690562,176.27,176.2,285.80207]
[1729795891823,7.84690562,176.27,176.21,5.08118153]
[1729795892022,7.84690562,176.27,176.22,5.08118153]
[1729795892323,2.8388,176.25,176.23,5.08118153]
[1729795892625,2.8388,176.25,176.21,10.68610562]
[1729795892823,2.8388,176.24,176.22,5.08401533]
[1729795893125,2.8388,176.24,176.23,5.08401533]
[1729795893512,2.8387,176.25,176.23,5.08401533]
[1729795893716,2.8387,176.25,176.22,2.8391]
[1729795893914,2.8387,176.25,176.23,5.08389535]
[1729795894127,2.8387,176.25,176.22,2.8391]
[1729795894325,2.8387,176.25,176.23,5.08365703]
[1729795894519,2.8387,176.25,176.22,2.8391]
[1729795894723,2.8387,176.25,176.23,5.08331777]
[1729795894917,2.8387,176.25,176.22,2.8391]
[1729795895121,2.8387,176.25,176.23,5.08305069]
[1729795895323,2.8387,176.25,176.22,2.8391]
[1729795895519,2.8387,176.25,176.23,5.08321709]
[1729795895825,7.84690562,176.26,176.22,2.8391]
[1729795896021,7.84690562,176.26,176.2,285.80207]
[1729795896223,7.84690562,176.22,176.2,285.80207]
[1729795897330,1.2569,176.25,176.21,7.84690562]
[1729795897825,2.8389,176.24,176.21,10.68610562]
[1729795898219,4.06,176.29,176.23,7.84690562]
[1729795898422,11.90690562,176.29,176.23,10.68580562]
[1729795898821,11.90690562,176.29,176.23,7.84690562]
[1729795899129,4.06,176.29,176.23,7.84690562]
[1729795899315,11.90690562,176.29,176.24,5.0812443]
[1729795899515,2.8385,176.26,176.23,10.68580562]
[1729795899829,2.8385,176.26,176.24,5.08123494]
[1729795900030,2.8385,176.26,176.23,10.68580562]
[1729795900227,2.8384,176.27,176.24,7.92016382]
[1729795900525,2.8384,176.27,176.24,2.8388]
[1729795902732,7.84690562,176.29,176.23,7.84690562]
[1729795902924,7.84690562,176.3,176.25,7.84690562]
[1729795903134,7.84690562,176.33,176.28,7.84690562]
[1729795903524,2.838,176.3,176.28,7.84690562]
[1729795903925,7.84690562,176.33,176.28,7.84690562]
[1729795905133,2.8379,176.3,176.28,7.84690562]
[1729795906837,2.838,176.29,176.28,7.84690562]
[1729795907833,7.84690562,176.33,176.28,7.84690562]
[1729795908032,2.8379,176.3,176.28,7.84690562]
[1729795910833,2.8382,176.29,176.26,4.06]
[1729795911835,2.8378,176.31,176.28,7.84690562]
[1729795913034,2.8372,176.35,176.3,7.84690562]
[1729795913244,7.84690562,176.35,176.3,7.84690562]
[1729795913541,7.84690562,176.35,176.31,2.8377]
[1729795913846,2.8373,176.34,176.31,2.8377]
[1729795914139,2.8373,176.34,176.3,7.84690562]
[1729795914326,2.8373,176.34,176.3,10.68470562]
[1729795914532,2.8374,176.33,176.3,10.68470562]
[1729795915742,2.8374,176.33,176.31,7.84690562]
[1729795915943,1.2587,176.37,176.31,11.90690562]
[1729795916145,2.8373,176.34,176.31,14.74450562]
[1729795917542,2.8375,176.33,176.31,4.06]
[1729795919438,7.84690562,176.33,176.27,1.2757]
[1729795919634,1.2587,176.37,176.28,5.0756193]
[1729795919635,7.84690562,176.3,176.28,5.0756193]
[1729795919840,7.84690562,176.3,176.27,4.06]
[1729795920142,2.838,176.29,176.28,5.07607779]
[1729795921353,2.8376,176.32,176.28,12.92298341]
[1729795921540,2.8376,176.32,176.3,7.84690562]
[1729795922844,9.02650562,176.35,176.29,10.68480562]
[1729795923039,2.8374,176.34,176.29,7.84690562]
[1729795923239,9.02650562,176.35,176.29,7.84690562]
[1729795923636,7.84690562,176.3,176.25,2.8386]
[1729795923842,7.84690562,176.3,176.26,9.13334012]
[1729795924040,10.68500562,176.29,176.27,5.07334012]
[1729795924347,10.68500562,176.29,176.26,6.8984]
[1729795924549,10.68500562,176.29,176.27,5.07410318]
[1729795924745,10.68500562,176.29,176.26,6.8984]
[1729795924958,10.68500562,176.29,176.27,5.07399183]
[1729795925246,10.68500562,176.29,176.26,6.8984]
[1729795925645,2.8381,176.29,176.26,6.8984]
[1729795925851,2.8384,176.27,176.24,6.8987]
[1729795926149,2.8384,176.27,176.25,5.07616208]
[1729795926446,7.84690562,176.29,176.25,5.07616208]
[1729795926447,2.8382,176.29,176.26,7.91456208]
[1729795926742,2.8382,176.29,176.27,5.07616208]
[1729795926946,7.84690562,176.32,176.28,15.76087153]
[1729795927141,5.2396,176.35,176.29,7.84690562]
[1729795927448,7.84690562,176.34,176.29,7.84690562]
[1729795927650,2.8377,176.32,176.29,10.68490562]
[1729795930544,2.8377,176.32,176.3,5.07921359]
[1729795930748,2.8377,176.32,176.29,10.68490562]
[1729795930943,2.8377,176.32,176.3,5.07925355]
[1729795931143,2.8374,176.33,176.3,2.8377]
[1729795931544,7.84690562,176.31,176.25,4.06]
[1729795931748,7.84690562,176.31,176.26,12.92618472]
[1729795931948,2.8379,176.3,176.27,7.9175791]
[1729795932245,2.8379,176.3,176.28,5.0792791]
[1729795932547,2.8379,176.3,176.29,5.0792791]
[1729795934448,10.68480562,176.3,176.29,1.2328791]
[1729795934647,2.8387,176.25,176.23,2.8389]
[1729795935143,2.8386,176.26,176.23,2.8389]
[1729795936243,2.8386,176.26,176.24,2.8388]
[1729795936452,2.8386,176.26,176.24,10.68570562]
[1729795936841,2.8386,176.26,176.24,2.8388]
[1729795937042,2.8386,176.26,176.22,6.8992]
[1729795937043,2.8388,176.25,176.22,6.8992]
[1729795938550,7.84690562,176.24,176.18,87.62873255]
[1729795938744,2.8393,176.21,176.18,4.06]
[1729795939349,2.8393,176.21,176.17,5.2485]
[1729795940356,2.8393,176.21,176.18,2.8398]
[1729795943054,4.06,176.26,176.17,5.2485]
[1729795943255,7.84690562,176.21,176.17,5.2485]
[1729795943450,11.90690562,176.21,176.2,216.88077]
[1729795943757,17.62068027,176.21,176.2,200.42277]
[1729795945148,10.68620562,176.21,176.2,200.42277]
[1729795945354,14.74620562,176.21,176.2,200.42277]
[1729795946255,19.18169108,176.21,176.2,125.80277]
[1729795946463,19.18169108,176.21,176.2,86.45537]
[1729795946464,31.46408216,176.21,176.2,86.45537]
[1729795946767,31.46408216,176.21,176.2,83.46207]
[1729795947055,31.46408216,176.21,176.2,79.69357]
[1729795947253,31.46408216,176.21,176.2,74.36937]
[1729795947462,31.46408216,176.21,176.2,68.63827]
[1729795947650,31.46408216,176.21,176.2,60.76497]
[1729795947848,31.46408216,176.21,176.2,56.52477]
[1729795948053,31.46408216,176.21,176.2,53.56207]
[1729795949252,2.8409,176.11,176.09,2.3534]
[1729795949457,12.28239108,176.13,176.09,2.3534]
[1729795950257,15.12309108,176.13,176.09,2.3534]
[1729795950465,12.28239108,176.13,176.09,2.3534]
[1729795951366,2.8408,176.12,176.09,2.3534]
[1729795952462,4.08,176.31,176.1,17.29016998]
[1729795952654,4.08,176.31,176.17,12.28239108]
[1729795952852,2.8384,176.27,176.18,4.08]
[1729795953055,2.8384,176.27,176.18,5.3099]
[1729795953259,2.8384,176.27,176.18,10.3047382]
[1729795954460,12.28239108,176.29,176.18,10.3047382]
[1729795954761,2.8385,176.26,176.21,2.8392]
[1729795955467,2.8385,176.26,176.2,2.8394]
[1729795955658,2.8385,176.26,176.18,10.3047382]
[1729795956668,2.8388,176.25,176.18,10.3047382]
[1729795956962,2.8388,176.25,176.21,2.8392]
[1729795957351,2.8388,176.25,176.18,10.3047382]
[1729795957565,2.8388,176.25,176.21,2.8392]
[1729795959057,12.28239108,176.28,176.21,2.8392]
[1729795959262,2.8388,176.24,176.21,2.8392]
[1729795962460,2.8391,176.23,176.19,4.0372]
[1729795963069,2.8389,176.24,176.19,1.1977]
[1729795963264,12.28239108,176.26,176.18,1.2299]
[1729795963463,12.28239108,176.24,176.18,1.2299]
[1729795964668,2.8394,176.21,176.18,4.0697]
[1729795966771,2.8396,176.19,176.18,1.2299]
[1729795969273,2.8396,176.19,176.16,2.8401]
[1729795981289,10.69468545,176.19,176.16,2.8401]
[1729795982881,2.8396,176.19,176.17,2.8399]
[1729795992302,2.8396,176.19,176.16,2.8401]
[1729795993204,7.85508545,176.17,176.14,2.4577]
[1729795993402,7.85508545,176.15,176.11,4.12]
[1729795993799,2.8406,176.14,176.11,6.9608]
[1729795994304,7.85508545,176.15,176.11,4.12]
[1729795994501,10.69538545,176.15,176.12,2.8407]
[1729795998002,7.85508545,176.13,176.1,4.12]
[1729795998210,7.85508545,176.13,176.11,2.8408]
[1729795999306,7.85508545,176.13,176.08,12.85901845]
[1729795999506,2.8408,176.12,176.09,4.12]
[1729796000302,2.8408,176.12,176.1,2.8411]
[1729796000494,7.85508545,176.13,176.1,2.8411]
[1729796000495,10.69568545,176.13,176.1,2.8411]
[1729796003304,10.69568545,176.13,176.09,4.12]
[1729796003605,10.69568545,176.13,176.11,2.8409]
[1729796006006,2.8403,176.15,176.13,2.8405]
[1729796006405,5.677,176.27,176.14,7.85508545]
[1729796006601,2.8397,176.19,176.16,2.8401]
[1729796009116,2.8396,176.2,176.17,2.8399]
[1729796012811,2.8396,176.2,176.14,10.29698545]
[1729796012812,4.12,176.24,176.14,10.29698545]
[1729796013013,1.1623,176.27,176.18,7.85508545]
[1729796013216,7.85508545,176.23,176.18,7.85508545]
[1729796013413,4.06,176.26,176.19,5.00548889]
[1729796013608,7.85508545,176.24,176.22,2.8391]
[1729796013814,7.85508545,176.24,176.19,7.85508545]
[1729796014119,7.85508545,176.24,176.2,5.00458705]
[1729796014421,10.69398545,176.24,176.21,2.8392]
[1729796015521,2.8389,176.24,176.21,2.8392]
[1729796015821,4.06,176.28,176.2,7.85508545]
[1729796016015,7.85508545,176.25,176.21,5.00572631]
[1729796016217,7.85508545,176.25,176.2,7.85508545]
[1729796016520,10.69388545,176.25,176.22,2.8391]
[1729796016922,7.85508545,176.25,176.2,7.85508545]
[1729796017118,7.85508545,176.25,176.21,5.00600309]
[1729796017323,7.85508545,176.25,176.2,7.85508545]
[1729796017524,10.69388545,176.25,176.22,2.8391]
[1729796018121,7.85508545,176.25,176.2,7.85508545]
[1729796018418,2.8388,176.24,176.21,7.84550018]
[1729796018623,2.8388,176.24,176.21,2.8393]
[1729796019121,2.8388,176.25,176.22,2.8391]
[1729796020420,2.8388,176.24,176.21,6.8993]
[1729796020620,7.85508545,176.26,176.21,4.06]
[1729796021322,2.8388,176.25,176.22,2.839]
[1729796021521,2.8388,176.25,176.22,10.69408545]
[1729796022323,2.8388,176.24,176.22,7.85508545]
[1729796023625,2.8388,176.24,176.21,14.75428545]
[1729796030527,7.85508545,176.26,176.21,11.91508545]
[1729796031426,2.8389,176.24,176.21,14.75438545]
[1729796036329,2.8389,176.24,176.21,6.8993]
[1729796039433,7.85508545,176.24,176.16,5.01038616]
[1729796039629,7.85508545,176.21,176.17,9.07038616]
[1729796039833,7.85508545,176.21,176.17,4.06]
[1729796040033,2.8396,176.2,176.18,5.01104297]
[1729796040229,2.8396,176.2,176.17,6.8999]
[1729796040437,2.8396,176.2,176.18,5.01082086]
[1729796040637,2.8396,176.2,176.17,4.06]
[1729796040839,2.8396,176.2,176.18,5.01069665]
[1729796041041,2.8396,176.2,176.17,4.06]
[1729796041231,2.8396,176.2,176.18,5.01067099]
[1729796041536,2.8396,176.2,176.17,4.06]
[1729796041736,2.8396,176.2,176.18,5.01103284]
[1729796042038,2.8396,176.2,176.17,4.06]
[1729796042236,2.8396,176.2,176.18,7.85101331]
[1729796042439,2.8396,176.2,176.18,2.8398]
[1729796052647,7.85508545,176.21,176.16,7.85508545]
[1729796052841,7.85508545,176.21,176.17,5.0091297]
[1729796053037,7.85508545,176.21,176.18,5.0091297]
[1729796053253,7.85508545,176.21,176.17,7.85508545]
[1729796053440,7.85508545,176.21,176.18,5.00903046]
[1729796053638,7.85508545,176.21,176.17,7.85508545]
[1729796053842,2.8396,176.2,176.18,7.84891083]
[1729796054046,2.8396,176.2,176.18,2.8397]
[1729796054346,7.85508545,176.23,176.18,7.85508545]
[1729796054541,4.06,176.26,176.18,7.85508545]
[1729796054846,7.85508545,176.23,176.18,7.85508545]
[1729796055245,2.8394,176.21,176.19,2.8395]
[1729796056147,7.85508545,176.23,176.16,4.06]
[1729796056348,2.8396,176.2,176.18,2.8398]
[1729796057246,2.8394,176.21,176.18,2.8398]
[1729796058449,2.8394,176.21,176.19,2.8396]
[1729796060346,7.85508545,176.21,176.14,2.4419]
[1729796060551,2.8401,176.16,176.14,5.2823]
[1729796061446,2.8401,176.16,174.24,101.49386051]
[1729796061447,7.85508545,176.15,176.09,2.8412]
[1729796061647,7.85508545,176.12,176.07,9.06818545]
[1729796061948,4.06,176.18,176.07,1.2131]
[1729796062149,2.8407,176.13,176.1,2.841]
[1729796062351,7.85508545,176.16,176.11,7.85508545]
[1729796062945,2.84579564,176.23,176.12,2.8406]
[1729796063149,4.06,176.22,176.13,7.85508545]
[1729796063453,7.85508545,176.2,176.15,7.85508545]
[1729796063640,2.8399,176.18,176.15,10.69528545]
[1729796064451,2.8397,176.19,176.16,2.8401]
[1729796064645,7.85508545,176.19,176.14,4.06]
[1729796066352,2.8398,176.18,176.15,2.8402]
[1729796066651,2.8398,176.18,176.16,5.01106112]
[1729796066853,2.8398,176.18,176.17,5.01106112]
[1729796071658,10.69478545,176.19,176.17,5.01106112]
[1729796071854,10.69478545,176.19,176.18,5.01106112]
[1729796077666,10.69478545,176.19,176.16,2.8401]
[1729796077965,10.69478545,176.19,176.17,5.01949853]
[1729796078160,10.69478545,176.19,176.18,5.01949853]
[1729796081770,10.69478545,176.19,176.16,2.8401]
[1729796081958,10.69478545,176.19,176.17,5.02011819]
[1729796082157,10.69478545,176.19,176.18,5.02011819]
[1729796085664,10.69478545,176.19,176.16,2.8401]
[1729796085865,10.69478545,176.19,176.18,5.0198231]
[1729796086165,10.69478545,176.19,176.16,2.8401]
[1729796086355,10.69478545,176.19,176.17,5.01982084]
[1729796086654,10.69478545,176.19,176.18,5.01982084]
[1729796089770,10.69478545,176.19,176.16,2.8401]
[1729796089968,10.69478545,176.19,176.17,5.02144907]
[1729796090166,10.69478545,176.19,176.18,5.02144907]
[1729796091164,4.06,176.23,176.18,5.02144907]
[1729796091464,5.2392,176.25,176.19,5.02144907]
[1729796091775,7.85508545,176.23,176.2,5.02144907]
[1729796091964,10.69428545,176.23,176.21,5.02144907]
[1729796092152,10.69428545,176.23,176.22,5.02144907]
[1729796093059,7.85508545,176.23,176.18,7.85508545]
[1729796093256,2.8389,176.24,176.19,12.87509968]
[1729796093465,2.8389,176.24,176.2,5.02001423]
[1729796093665,2.8389,176.24,176.21,7.85921423]
[1729796093858,2.8389,176.24,176.21,2.8392]
[1729796094058,2.8389,176.24,176.22,5.01940271]
[1729796094265,2.8389,176.24,176.23,5.01940271]
[1729796098072,2.8389,176.24,176.23,5.01931927]
[1729796100871,10.69398545,176.24,176.23,5.01931927]
[1729796101068,10.69398545,176.24,176.19,10.34548545]
[1729796101069,2.839,176.23,176.19,10.34548545]
[1729796101266,2.839,176.23,176.2,7.85892438]
[1729796101466,2.839,176.23,176.21,5.01952438]
[1729796101662,2.839,176.23,176.19,2.4904]
[1729796101663,2.839,176.23,176.22,5.01952438]
[1729796101868,10.69408545,176.23,176.22,5.01952438]
[1729796104572,2.8393,176.22,176.18,6.8997]
[1729796104878,7.85508545,176.21,176.19,5.02090426]
[1729796105068,7.85508545,176.21,176.2,5.02090426]
[1729796105569,10.69438545,176.21,176.2,5.02090426]
[1729796108279,7.85508545,176.21,176.2,5.02090426]
[1729796108478,10.69438545,176.21,176.2,5.02053426]
[1729796108780,2.8393,176.21,176.19,2.8395]
[1729796108973,2.8389,176.24,176.21,2.8392]
[1729796109185,7.85508545,176.26,176.22,5.02044532]
[1729796109377,7.85508545,176.26,176.23,5.02044532]
[1729796109578,2.8387,176.25,176.24,5.02044532]
[1729796110584,122.0,176.46,176.24,5.02044532]
[1729796110585,5.6734,176.38,176.24,12.87553077]
[1729796110788,7.85508545,176.31,176.25,5.02044532]
[1729796111082,7.85508545,176.31,176.26,5.02044532]
[1729796111282,7.85508545,176.31,176.27,5.02044532]
[1729796111475,7.85508545,176.31,176.28,5.02044532]
[1729796111678,2.8382,176.29,176.24,7.85508545]
[1729796111879,2.8382,176.29,176.25,5.01691347]
[1729796112080,2.8382,176.29,176.26,5.01691347]
[1729796112282,2.8382,176.29,176.24,7.85508545]
[1729796112283,2.8382,176.29,176.27,5.01691347]
[1729796112480,2.8382,176.29,176.28,5.01691347]
[1729796114292,2.8382,176.29,176.25,2.8386]
[1729796114487,2.8382,176.29,176.26,5.01105399]
[1729796114783,2.8382,176.29,176.27,5.01105399]
[1729796114972,2.8382,176.29,176.25,2.8386]
[1729796115177,7.85508545,176.3,176.26,5.01118436]
[1729796115374,2.8378,176.31,176.27,5.01118436]
[1729796115586,2.8378,176.31,176.27,7.85508545]
[1729796116184,2.8378,176.31,176.27,10.69328545]
[1729796116379,2.8378,176.31,176.28,5.00811745]
[1729796116585,2.8378,176.31,176.27,7.85508545]
[1729796116788,2.8378,176.31,176.28,7.84620482]
[1729796116986,2.8378,176.31,176.28,2.8381]
[1729796117879,2.8378,176.31,176.27,10.69338545]
[1729796118590,2.8379,176.3,176.27,10.69338545]
[1729796119684,2.8379,176.3,176.27,2.8383]
[1729796119894,2.8383,176.28,176.26,4.06]
[1729796120082,7.85508545,176.29,176.24,7.85508545]
[1729796120282,7.85508545,176.27,176.25,5.00310176]
[1729796120482,4.06,176.36,176.23,11.91508545]
[1729796120483,7.85508545,176.28,176.23,11.91508545]
[1729796120886,7.85508545,176.29,176.24,12.8584563]
[1729796121087,7.85508545,176.29,176.26,2.8384]
[1729796121486,2.838,176.3,176.26,10.69348545]
[1729796121888,2.8381,176.29,176.26,10.69348545]
[1729796123193,7.85508545,176.28,176.24,5.00337085]
[1729796123393,4.06,176.32,176.24,5.00337085]
[1729796123394,7.85508545,176.25,176.24,5.00337085]
[1729796123590,7.85508545,176.25,176.23,4.06]
[1729796123990,10.69388545,176.25,176.23,4.06]
[1729796125487,1.4528,176.31,176.17,61.3]
[1729796125488,7.85508545,176.24,176.19,2.8396]
[1729796125688,7.85508545,176.22,176.2,5.00001641]
[1729796125888,7.85508545,176.22,176.21,5.00001641]
[1729796127397,7.85508545,176.23,176.21,5.00001641]
[1729796127593,7.85508545,176.23,176.18,11.91508545]
[1729796127796,10.69418545,176.23,176.19,7.83985092]
[1729796128091,10.69418545,176.23,176.2,5.00025092]
[1729796128296,10.69418545,176.23,176.21,5.00025092]
[1729796128594,2.8392,176.22,176.19,2.8396]
[1729796128794,2.8392,176.22,176.2,5.00031057]
[1729796128994,2.8392,176.22,176.21,5.00031057]
[1729796131196,7.85508545,176.22,176.18,4.06]
[1729796131401,2.8396,176.2,176.19,5.00212805]
[1729796133104,2.8396,176.2,176.18,4.06]
[1729796133402,2.8396,176.2,176.19,5.00331889]
[1729796137007,2.8396,176.2,176.18,4.06]
[1729796137304,2.8396,176.2,176.19,5.00378757]
[1729796141101,2.8396,176.2,176.18,4.06]
[1729796141509,2.8396,176.2,176.19,5.00114115]
[1729796141909,7.85508545,176.21,176.1,1.4382]
[1729796142108,7.85508545,176.17,176.12,7.85508545]
[1729796142304,10.69508545,176.17,176.14,2.8404]
[1729796142504,10.69508545,176.17,176.15,5.00295723]
[1729796142707,10.69508545,176.17,176.16,5.00295723]
[1729796144308,2.84,176.17,176.16,5.00295723]
[1729796145611,2.84,176.17,176.14,2.8404]
[1729796146005,2.84,176.17,176.15,5.00303805]
[1729796146205,2.84,176.17,176.16,5.00303805]
[1729796149310,2.84,176.17,176.16,5.00302573]
[1729796150420,10.69508545,176.17,176.16,5.00302573]
[1729796151119,6.8817,176.24,176.16,5.00302573]
[1729796151417,7.85508545,176.2,176.17,5.00302573]
[1729796151617,7.85508545,176.2,176.18,5.00302573]
[1729796151815,10.69458545,176.2,176.17,2.8399]
[1729796152010,10.69458545,176.2,176.18,5.00362753]
[1729796152214,10.69458545,176.2,176.17,2.8399]
[1729796152410,10.69458545,176.2,176.18,5.00314305]
[1729796152717,10.69458545,176.2,176.19,5.00314305]
[1729796153410,10.69458545,176.2,176.17,2.8399]
[1729796153712,10.69458545,176.2,176.18,5.00299212]
[1729796153906,10.69458545,176.2,176.19,5.00299212]
[1729796155313,10.69458545,176.2,176.15,11.91508545]
[1729796155314,7.85508545,176.2,176.1,2.6657]
[1729796155513,4.06,176.19,176.05,1.3465]
[1729796155717,1.9417,176.23,175.97,61.32]
[1729796155718,7.85508545,176.07,175.97,61.32]
[1729796155916,2.8417,176.07,176.02,2.8423]
[1729796156212,2.8417,176.07,175.98,5.4065]
[1729796156213,4.06,176.08,175.98,4.06]
[1729796156412,2.8425,176.02,175.98,4.06]
[1729796156620,4.06,176.08,175.98,4.06]
[1729796157021,1.4677,176.1,175.98,11.91508545]
[1729796157220,7.85508545,176.02,175.98,4.06]
[1729796157523,4.06,176.05,175.97,4.06]
[1729796157716,7.85508545,175.98,175.97,4.06]
[1729796157922,7.85508545,175.98,175.95,4.06]
[1729796158119,4.06,176.05,175.95,4.06]
[1729796158120,10.69838545,175.97,175.95,4.06]
[1729796158427,10.69838545,175.97,175.92,4.06]
[1729796158925,7.85508545,175.97,175.93,2.8437]
[1729796159329,7.85508545,175.97,175.92,4.32]
[1729796160326,2.8431,175.98,175.94,2.8436]
[1729796160526,12.29263022,175.99,175.92,4.32]